Workbook

Sheet Sheet1
A1: TENANT | C1: UNIT SIZE | D1: MIX | E1: UNIT# | F1: NET CASH FLOW | T1: LEASE | U1: END | V1: START
F2: JAN | G2: FEB | H2: MARCH | I2: APRIL | J2: MAY | K2: JUNE | L2: JULY | M2: AUGUST | N2: SEPT | O2: OCT | P2: NOV | Q2: DEC | R2: TOTALS | S2: %
A3: BOOTY | C3: 625 | D3: ONE BED | E3: 1 | F3: 1595 | G3: 1595 | H3: 1595 | I3: 1595 | J3: 1595 | K3: 1595 | L3: 1595 | M3: 1595 | N3: 1595 | O3: 1595 | P3: 1595 | Q3: 1595 | R3: =SUM(F3:Q3) -> 19140 | S3: =R3/R6 -> 1.245283019 | T3: 1YR | U3: 2027-01-31 | V3: 2025-02-01
A4: BRIANNA TIATT | C4: 624 | D4: ONE BED | E4: 2 | F4: 1350 | G4: 1350 | H4: 1350 | I4: 1350 | K4: 1350 | L4: 1350 | M4: 1350 | N4: 1350 | O4: 1350 | P4: 1350 | Q4: 1350 | R4: 14850 | T4: 1YR | U4: 06.04.2027 | V4: 06.05.2026
A5: YIP | C5: 450 | D5: ONE BED | E5: 3 | F5: 1250 | G5: 1250 | H5: 1250 | I5: 1250 | J5: 1250 | K5: 1250 | L5: 1250 | M5: 1250 | N5: 1250 | O5: 1250 | P5: 1250 | Q5: 1250 | R5: 15000 | S5: =R5/R6 -> 0.9759271308 | T5: 1YR | U5: 2026-06-13
A6: VACANT | C6: 450 | D6: ONE BED | E6: 4 | F6: 1600 | G6: 1600 | H6: 1600 | I6: 1600 | L6: 1495 | M6: 1495 | N6: 1495 | O6: 1495 | P6: 1495 | Q6: 1495 | R6: 15370 | T6: 1YR
A7: MURRAY AND SHOOK | C7: 625 | D7: ONE BED | E7: 5 | F7: 1600 | G7: 1600 | H7: 1600 | J7: 1495 | K7: 1495 | L7: 1495 | M7: 1495 | N7: 1495 | O7: 1495 | P7: 1495 | Q7: 1495 | R7: 16760 | T7: 1YR | U7: 2027-05-14 | V7: 2026-05-15
A8: MEYERS | C8: 1100 | D8: THREE BED | E8: 6 | F8: 1995 | G8: 1995 | H8: 1995 | I8: 1995 | J8: 1995 | K8: 1995 | L8: 1995 | M8: 1995 | N8: 1995 | O8: 1995 | P8: 1995 | Q8: 1995 | R8: 23940 | T8: MTM
A9: LDY | C9: 50 | F9: 75 | G9: 75 | H9: 75 | I9: 75 | J9: 75 | K9: 75 | L9: 75 | M9: 75 | N9: 75 | O9: 75 | P9: 75 | Q9: 75 | R9: 900
A10: TOTAL | C10: =SUM(C3:C9) -> 3924 | F10: =SUM(F3:F9) -> 9465 | G10: =SUM(G3:G9) -> 9465 | H10: 9465 | I10: 7865 | J10: 6410 | K10: 7760 | L10: 9255 | M10: 9255 | N10: =SUM(N3:N9) -> 9255 | O10: =SUM(O3:O9) -> 9255 | P10: =SUM(P3:P9) -> 9255 | Q10: =SUM(Q3:Q9) -> 9255 | R10: 105960
A12: GSI | F12: =PRODUCT(F10*12) -> 113580 | G12: =PRODUCT(G10*12) -> 113580 | H12: 113580 | I12: 94380 | J12: 76920 | K12: 93120 | L12: 111060 | M12: 111060 | N12: 111060 | O12: 111060 | P12: 111060 | Q12: 111060
A14: LOANS
A15: 1st | F15: 0 | G15: 0 | H15: 0 | I15: 0 | J15: 0 | K15: 0 | L15: 0 | M15: 0 | N15: 0 | O15: 0 | P15: 0 | Q15: 0 | R15: =SUM(F15:Q15) -> 0
A16: TOTAL PAYMENTS | F16: =SUM(F15:F15) -> 0 | G16: 0 | H16: 0 | I16: 0 | J16: 0 | K16: 0 | L16: 0 | M16: 0 | N16: 0 | O16: 0 | P16: 0 | Q16: 0 | R16: =SUM(F16:Q16) -> 0
A18: DEBT% | F18: =F16/F10 -> 0 | G18: =G16/G10 -> 0 | H18: 0 | I18: 0 | J18: 0 | K18: 0 | L18: 0 | M18: 0 | N18: 0 | O18: 0 | P18: 0 | Q18: 0 | R18: 0
A20: EXPENSES
A21: INSURANCE | F21: 100 | G21: 100 | H21: 100 | I21: 100 | J21: 100 | K21: 100 | L21: 100 | M21: 100 | N21: 100 | O21: 100 | P21: 100 | Q21: 100 | R21: =SUM(F21:Q21) -> 1200 | S21: =R21/R29 -> 0.03571428571
A22: LANDSCAPING | F22: 250 | G22: 250 | H22: 250 | I22: 250 | J22: 250 | K22: 250 | L22: 250 | M22: 250 | N22: 250 | O22: 250 | P22: 250 | Q22: 250 | R22: 3000
A23: VACANCY | F23: 500 | G23: 500 | H23: 500 | I23: 500 | J23: 500 | K23: 500 | L23: 500 | M23: 500 | N23: 500 | O23: 500 | P23: 500 | Q23: 500 | R23: 6000
A24: SUPPLIES | F24: 200 | G24: 200 | H24: 200 | I24: 200 | J24: 200 | K24: 200 | L24: 200 | M24: 200 | N24: 200 | O24: 200 | P24: 200 | Q24: 200 | R24: 2400
A25: REPAIRS | F25: 250 | G25: 250 | H25: 250 | I25: 250 | J25: 250 | K25: 250 | L25: 250 | M25: 250 | N25: 250 | O25: 250 | P25: 250 | Q25: 250 | R25: 3000 | S25: =R25/R29 -> 0.08928571429
A26: TAXES | F26: 1200 | G26: 1200 | H26: 1200 | I26: 1200 | J26: 1200 | K26: 1200 | L26: 1200 | M26: 1200 | N26: 1200 | O26: 1200 | P26: 1200 | Q26: 1200 | R26: 14400 | S26: =R26/R29 -> 0.4285714286
A27: UTILITIES | F27: 0 | G27: 0 | H27: 0 | I27: 0 | J27: 0 | K27: 0 | L27: 0 | M27: 0 | N27: 0 | O27: 0 | P27: 0 | Q27: 0 | R27: 0
A28: WATER | F28: 300 | G28: 300 | H28: 300 | I28: 300 | J28: 300 | K28: 300 | L28: 300 | M28: 300 | N28: 300 | O28: 300 | P28: 300 | Q28: 300 | R28: 3600
A29: TOTAL EXPENSES | F29: =SUM(F21:F28) -> 2800 | G29: 2800 | H29: 2800 | I29: 2800 | J29: 2800 | K29: =SUM(K21:K28) -> 2800 | L29: 2800 | M29: 2800 | N29: 2800 | O29: 2800 | P29: 2800 | Q29: 2800 | R29: 33600
A30: EXPENSE % | F30: =F29/F10 -> 0.2958267301 | G30: =G29/G10 -> 0.2958267301 | H30: 0.2958267301 | I30: 0.3560076287 | J30: 0.4368174727 | K30: 0.3608247423 | L30: 0.302539168 | M30: 0.302539168 | N30: 0.302539168 | O30: 0.302539168 | P30: 0.302539168 | Q30: 0.302539168 | R30: 0.3171007928
A32: NET CF | F32: =SUM(F10-F16-F29) -> 6665 | G32: 6665 | H32: 6665 | I32: 5065 | J32: 3610 | K32: 4960 | L32: 6455 | M32: 6455 | N32: 6455 | O32: 6455 | P32: 6455 | Q32: 6455 | R32: 72360
A34: NET CF | E34: =SUM(R10-R16-R29) -> 72360
A35: FOR YEAR
A36: ROR | E36: =(Q32*12)/E45 -> 
A37: OCCUPANCY | E37: 1
A40: DEBT | E40: 0
A41: CAP RATE | E41: 0.05
A42: NOI | E42: =Q12-(Q29*12) -> 77460
A43: NOI LESS VACANCY | E43: =0.95*(E42) -> 73587
A44: VALUE | E44: =(E43/E41) -> 1471740

Sheet Sheet2

Sheet Sheet3

Sheet Sheet4

Sheet Sheet5

Sheet Sheet6

Sheet Sheet7

Sheet Sheet8

Sheet Sheet9

Sheet Sheet10

Sheet Sheet11

Sheet Sheet12

Sheet Sheet13

Sheet Sheet14

Sheet Sheet15

Sheet Sheet16
